bitfinex-derivatives/quotes_SOLF0:USTF0_20250831
["timestamp","ask_amount","ask_price","bid_price","bid_amount"]
[1756621839501,125.87647245,203.83,203.79,0.03234771]
[1756621839688,125.87647245,203.83,203.8,7.84]
[1756621839986,125.87647245,203.83,203.79,0.03234771]
[1756621840392,125.87647245,203.83,203.8,7.84]
[1756621840993,125.87647245,203.83,203.79,0.03234771]
[1756621841394,125.87647245,203.83,203.8,7.84]
[1756621841592,6.29647245,203.83,203.8,7.84]
[1756621841791,119.54,203.82,203.8,7.84]
[1756621842095,119.54,203.82,203.79,0.03234771]
[1756621842294,6.29647245,203.83,203.79,0.03234771]
[1756621842595,119.54,203.81,203.8,7.84]
[1756621848400,124.3,203.81,203.8,7.84]
[1756621848701,124.3,203.81,203.79,0.03234771]
[1756621848900,124.3,203.81,203.79,7.87234771]
[1756621853706,124.3,203.81,203.79,0.03234771]
[1756621854004,124.3,203.81,203.79,7.87234771]
[1756621855012,4.76,203.8,203.79,0.03234771]
[1756621856515,124.26,203.8,203.79,0.03234771]
[1756621857411,124.24,203.8,203.79,0.03234771]
[1756621860012,119.48,203.8,203.79,7.87234771]
[1756621860311,124.24,203.8,203.79,7.87234771]
[1756621860512,124.24,203.8,203.79,0.03234771]
[1756621862107,4.77,203.83,203.79,0.03234771]
[1756621862313,4.77,203.82,203.8,7.84]
[1756621862505,119.46,203.83,203.79,1.55882016]
[1756621863010,4.77,203.82,203.79,9.39882016]
[1756621866015,4.77,203.82,203.8,7.84]
[1756621867616,68.52,203.83,203.8,7.84]
[1756621868017,4.77,203.82,203.8,7.84]
[1756621870921,73.29,203.83,203.8,7.78]
[1756621872523,4.77,203.82,203.8,7.78]
[1756621873318,68.52,203.83,203.79,0.03234771]
[1756621873728,68.52,203.83,203.8,7.78]
[1756621874222,73.29,203.83,203.79,0.03234771]
[1756621874615,73.29,203.83,203.8,7.78]
[1756621875019,73.29,203.83,203.79,1.55882016]
[1756621875221,73.29,203.83,203.8,7.78]
[1756621876116,68.52,203.83,203.8,7.78]
[1756621876419,4.77,203.82,203.8,7.78]
[1756621877520,68.52,203.83,203.79,1.55882016]
[1756621877824,73.29,203.83,203.79,1.55882016]
[1756621878226,73.29,203.83,203.8,7.78]
[1756621878526,73.29,203.83,203.79,1.55882016]
[1756621879025,73.29,203.83,203.8,7.78]
[1756621880527,1.52647245,203.85,203.79,1.55882016]
[1756621880528,10.24048237,203.88,203.82,7.78]
[1756621880825,6.29647245,203.87,203.82,7.78]
[1756621881027,100.62048237,203.88,203.83,1.52647245]
[1756621881223,4.77,203.87,203.84,7.78]
[1756621881519,4.77,203.87,203.83,7.78]
[1756621881725,91.90647245,203.88,203.83,7.78]
[1756621881925,4.77,203.87,203.83,7.78]
[1756621882127,91.90647245,203.88,203.83,7.78]
[1756621882328,4.77,203.87,203.83,7.78]
[1756621882725,91.90647245,203.88,203.83,7.78]
[1756621883126,1.52647245,203.86,203.8,7.78]
[1756621883432,4.75,203.85,203.8,7.78]
[1756621883627,1.52647245,203.86,203.8,7.78]
[1756621883822,4.75,203.85,203.8,7.78]
[1756621884026,1.52647245,203.86,203.8,7.78]
[1756621884326,4.75,203.85,203.8,7.78]
[1756621884724,1.52647245,203.86,203.79,1.52647245]
[1756621885129,4.75,203.85,203.8,7.78]
[1756621885329,1.52647245,203.86,203.79,1.52647245]
[1756621885529,4.75,203.85,203.8,7.78]
[1756621886329,1.52647245,203.86,203.79,1.52647245]
[1756621886832,4.75,203.85,203.8,7.78]
[1756621887033,1.52647245,203.86,203.79,1.52647245]
[1756621887923,1.52647245,203.86,203.8,7.78]
[1756621888132,1.52647245,203.86,203.79,1.52647245]
[1756621889028,6.27647245,203.86,203.8,7.78]
[1756621889532,6.27647245,203.86,203.8,9.30647245]
[1756621890031,4.75,203.86,203.8,9.30647245]
[1756621891635,1.52647245,203.83,203.77,1.52647245]
[1756621891834,4.75,203.82,203.77,9.30647245]
[1756621892130,4.75,203.82,203.79,7.78]
[1756621892629,4.75,203.82,203.78,1.52647245]
[1756621892830,4.75,203.82,203.79,7.78]
[1756621893031,4.75,203.82,203.78,1.52647245]
[1756621893930,4.75,203.82,203.79,7.78]
[1756621894133,4.75,203.82,203.78,1.52647245]
[1756621894332,1.52647245,203.84,203.78,7.78]
[1756621894632,4.75,203.86,203.75,9.30647245]
[1756621894633,1.52647245,203.82,203.75,9.30647245]
[1756621895033,4.75,203.81,203.75,9.30647245]
[1756621898435,4.77,203.81,203.75,9.30647245]
[1756621898635,4.77,203.77,203.68,7.47]
[1756621898833,1.52647245,203.78,203.71,1.52647245]
[1756621899029,4.77,203.79,203.72,7.47]
[1756621899230,1.52647245,203.78,203.72,7.47]
[1756621902039,1.52647245,203.78,203.71,1.52647245]
[1756621902442,4.77,203.77,203.72,7.47]
[1756621903041,1.52647245,203.78,203.71,1.52647245]
[1756621903943,4.77,203.77,203.72,7.47]
[1756621904546,1.52647245,203.78,203.71,1.52647245]
[1756621904740,4.77,203.77,203.72,7.47]
[1756621905038,1.52647245,203.78,203.72,7.47]
[1756621905433,1.52647245,203.78,203.71,1.52647245]
[1756621905639,4.77,203.77,203.71,8.99647245]
[1756621906339,6.29647245,203.76,203.72,7.47]
[1756621906547,6.29647245,203.76,203.71,1.52647245]
[1756621906938,6.29647245,203.76,203.72,7.47]
[1756621907242,6.29647245,203.76,203.71,1.52647245]
[1756621907543,6.29647245,203.76,203.72,7.47]
[1756621907836,6.29647245,203.76,203.71,1.52647245]
[1756621908042,6.29647245,203.76,203.72,7.47]
[1756621908442,6.29647245,203.76,203.71,1.52647245]
[1756621909047,6.29647245,203.76,203.72,7.47]
[1756621909346,6.29647245,203.76,203.71,1.52647245]
[1756621910345,6.29647245,203.76,203.72,7.47]
[1756621910543,6.29647245,203.76,203.71,1.52647245]
[1756621910751,1.52647245,203.76,203.72,7.47]
[1756621911244,4.77,203.75,203.72,7.47]
[1756621911444,4.77,203.75,203.71,1.52647245]
[1756621911646,4.77,203.75,203.72,7.47]
[1756621912048,4.77,203.75,203.71,1.52647245]
[1756621912248,4.77,203.75,203.72,7.47]
[1756621912548,22.38,203.8,203.72,7.47]
[1756621912549,4.77,203.79,203.72,7.47]
[1756621912749,4.77,203.79,203.71,1.52647245]
[1756621912750,4.77,203.76,203.71,1.52647245]
[1756621912942,4.77,203.76,203.72,7.47]
[1756621913143,4.77,203.76,203.71,1.52647245]
[1756621913338,4.77,203.76,203.72,7.47]
[1756621913545,4.77,203.76,203.71,7.47]
[1756621913746,4.77,203.76,203.7,1.52647245]
[1756621913941,4.77,203.76,203.71,7.47]
[1756621914651,4.77,203.76,203.7,1.52647245]
[1756621914948,4.77,203.76,203.71,7.47]
[1756621915749,4.77,203.76,203.7,1.52647245]
[1756621915948,4.77,203.76,203.71,7.47]
[1756621916343,1.52647245,203.77,203.62,0.85409253]
[1756621916546,1.52647245,203.71,203.63,7.47]
[1756621916847,1.52647245,203.71,203.65,7.47]
[1756621917150,6.29647245,203.72,203.65,7.47]
[1756621921943,1.52647245,203.7,203.65,7.47]
[1756621922250,4.77,203.78,203.64,8.99647245]
[1756621922553,4.77,203.7,203.64,8.99647245]
[1756621923951,5.47048237,203.79,203.64,8.99647245]
[1756621923952,1.52647245,203.72,203.64,8.99647245]
[1756621926757,6.29647245,203.73,203.67,7.47]
[1756621931156,6.29647245,203.73,203.67,8.99647245]
[1756621931661,4.77,203.73,203.67,8.99647245]
[1756621931960,6.29647245,203.73,203.67,8.99647245]
[1756621933967,4.77,203.73,203.67,8.99647245]
[1756621934172,6.29647245,203.73,203.67,8.99647245]
[1756621934775,6.29647245,203.73,203.67,7.47]
[1756621939865,1.52647245,203.73,203.67,7.47]
[1756621940870,1.52647245,203.73,203.68,1.52647245]
[1756621941071,6.30647245,203.73,203.69,7.72]
[1756621941371,6.30647245,203.73,203.68,1.52647245]
[1756621942172,6.30647245,203.73,203.69,7.72]
[1756621942872,4.78,203.73,203.68,1.52647245]
[1756621943066,4.78,203.73,203.69,7.72]
[1756621943665,4.78,203.73,203.68,1.52647245]
[1756621943873,4.77,203.73,203.68,9.24647245]
[1756621944072,4.77,203.73,203.67,1.52647245]
[1756621944272,4.77,203.73,203.68,7.72]
[1756621944674,1.52647245,203.74,203.66,1.52647245]
[1756621944874,4.77,203.73,203.67,7.72]
[1756621946970,4.77,203.73,203.67,9.24647245]
[1756621950375,4.77,203.73,203.67,7.72]
[1756621950776,4.77,203.73,203.67,9.24647245]
[1756621953780,4.77,203.73,203.67,7.72]
[1756621954175,1.52647245,203.7,203.65,1.52647245]
[1756621954380,4.77,203.69,203.64,7.72]
[1756621954573,1.52647245,203.7,203.63,1.52647245]
[1756621954777,4.77,203.69,203.64,7.72]
[1756621955271,6.29647245,203.7,203.65,1.52647245]
[1756621955477,4.77,203.7,203.66,7.72]
[1756621955877,4.77,203.7,203.65,1.52647245]
[1756621957079,4.77,203.7,203.66,7.72]
[1756621957279,4.77,203.7,203.65,1.52647245]
[1756621957682,4.77,203.7,203.59,6.36943467]
[1756621957875,4.77,203.7,203.67,7.41]
[1756621959781,4.77,203.7,203.66,1.52647245]
[1756621960083,6.27647245,203.74,203.68,1.52647245]
[1756621962983,6.27647245,203.74,203.69,7.41]
[1756621963977,1.52647245,203.74,203.68,1.52647245]
[1756621964183,1.52647245,203.74,203.69,7.41]
[1756621964384,4.75,203.75,203.69,7.41]
[1756621967577,6.27647245,203.75,203.69,7.41]
[1756621967784,5.47048237,203.78,203.72,1.52647245]
[1756621967974,4.75,203.79,203.59,0.85453295]
[1756621967975,4.75,203.79,203.75,7.41]
[1756621968179,1.52647245,203.81,203.76,4.63307266]
[1756621968387,1.52647245,203.81,203.77,4.63307266]
[1756621968583,4.75,203.8,203.78,4.63307266]
[1756621968783,4.75,203.8,203.79,4.63307266]
[1756621968980,6.27647245,203.8,203.79,4.63307266]
[1756621970482,6.27647245,203.8,203.79,4.63582167]
[1756621976085,125.57647245,203.8,203.79,4.63582167]
[1756621980895,119.28,203.8,203.79,7.41]
[1756621981193,119.28,203.8,203.79,12.04096792]
[1756621982594,4.75,203.82,203.79,12.04096792]
[1756621982894,119.28,203.81,203.8,4.63096792]
[1756621983297,124.03,203.81,203.8,4.63096792]
[1756621984596,6.27647245,203.81,203.8,4.63096792]
[1756621984797,125.55647245,203.81,203.8,4.63096792]
[1756621984998,6.27647245,203.81,203.8,4.63096792]
[1756621985199,125.53647245,203.81,203.8,4.63096792]
[1756621987597,121.28647245,203.81,203.7,8.89647245]
[1756621987801,0.14,203.76,203.7,8.89647245]
[1756621988098,119.4,203.75,203.7,1.52647245]
[1756621988295,119.4,203.75,203.71,7.37]
[1756621988488,0.14,203.74,203.71,7.37]
[1756621988689,0.14,203.74,203.68,8.89647245]
[1756621991095,0.14,203.74,203.68,7.37]
[1756621991400,120.78647245,203.75,203.68,7.37]
[1756621991401,0.14,203.72,203.68,7.37]
[1756621991599,1.52647245,203.73,203.68,7.37]
[1756621991799,0.14,203.72,203.68,7.37]
[1756621992102,0.14,203.7,203.65,7.37]
[1756621992295,119.4,203.69,203.65,7.37]
[1756621992494,119.4,203.69,203.64,1.52647245]
[1756621992690,119.4,203.69,203.65,7.37]
[1756621993000,0.14,203.68,203.65,7.37]
[1756621993192,0.14,203.68,203.63,1.52647245]
[1756621993999,0.14,203.68,203.64,7.37]
[1756621994197,0.14,203.68,203.54,8.96]
[1756621994398,120.92647245,203.69,203.62,1.52647245]
[1756621994603,120.92647245,203.69,203.63,7.37]
[1756621999405,0.14,203.66,203.63,7.37]
[1756621999605,0.14,203.66,203.64,4.53993672]
[1756621999806,0.14,203.66,203.65,4.53993672]
[1756622001503,0.14,203.66,203.65,4.53835872]
[1756622002205,0.14,203.66,203.65,4.53811748]
[1756622003005,0.15,203.66,203.55,7.37]
[1756622003208,1.52647245,203.62,203.57,7.37]
[1756622003508,1.52647245,203.62,203.57,8.89647245]
[1756622006307,1.52647245,203.62,203.56,7.37]
[1756622009517,1.52647245,203.63,203.56,7.37]
[1756622009710,1.52647245,203.61,203.56,7.37]
[1756622010412,1.52647245,203.62,203.56,7.37]
[1756622013916,0.15,203.65,203.56,7.37]
[1756622014117,1.52647245,203.62,203.56,7.37]
[1756622018323,1.52647245,203.62,203.56,8.89647245]
[1756622020728,1.52647245,203.63,203.56,8.89647245]
[1756622021831,1.52647245,203.63,203.56,7.37]
[1756622022023,1.52647245,203.63,203.58,7.57]
[1756622023131,1.52647245,203.63,203.57,1.52647245]
[1756622023432,1.52647245,203.63,203.58,7.57]
[1756622023630,1.52647245,203.63,203.57,1.52647245]
[1756622023833,1.52647245,203.63,203.58,7.57]
[1756622024331,1.52647245,203.63,203.57,1.52647245]
[1756622024923,1.52647245,203.63,203.58,7.57]
[1756622025124,0.15,203.64,203.58,7.57]
[1756622025434,1.52647245,203.63,203.58,7.57]
[1756622025737,1.52647245,203.63,203.57,1.52647245]
[1756622025931,1.52647245,203.63,203.58,7.57]
[1756622026230,0.15,203.62,203.54,1.52647245]
[1756622026434,1.52647245,203.61,203.54,1.52647245]
[1756622026636,1.67647245,203.62,203.56,1.52647245]
[1756622026836,1.52647245,203.63,203.57,7.57]
[1756622029441,42.3,203.66,203.54,7.57]
[1756622029739,1.67647245,203.6,203.51,7.57]
[1756622029934,1.67647245,203.6,203.52,1.52647245]
[1756622030133,1.67647245,203.6,203.53,7.57]
[1756622031238,0.15,203.6,203.53,7.57]
[1756622031438,1.52647245,203.58,203.53,7.57]
[1756622031735,1.52647245,203.58,203.52,7.57]
[1756622032240,1.52647245,203.58,203.46,7.57]
[1756622032241,1.52647245,203.54,203.46,7.57]
[1756622032446,1.52647245,203.52,203.46,7.57]
[1756622032943,1.52647245,203.52,203.46,9.09647245]
[1756622033144,1.52647245,203.54,203.46,7.57]
[1756622033537,1.52647245,203.54,203.48,7.57]
[1756622034033,5.47048237,203.61,203.48,7.57]
[1756622034034,10.02,203.58,203.51,1.52647245]
[1756622034336,0.15,203.61,203.54,7.57]
[1756622034541,1.52647245,203.6,203.56,7.57]
[1756622034742,1.52647245,203.6,203.55,1.52647245]
[1756622034940,0.15,203.64,203.56,7.57]
[1756622035138,1.52647245,203.62,203.56,7.57]
[1756622037443,41.51,203.64,203.56,7.57]
[1756622037847,2.38889861,203.62,203.56,7.57]
[1756622038446,41.51,203.64,203.56,7.57]
[1756622039044,0.15,203.64,203.56,7.57]
[1756622039250,26.06889861,203.65,203.56,7.57]
[1756622039550,2.38889861,203.65,203.56,7.57]
[1756622041144,45.06,203.66,203.56,7.57]
[1756622041351,2.38889861,203.63,203.56,7.57]
[1756622041750,0.15,203.65,203.56,7.57]
[1756622043142,47.44889861,203.66,203.56,7.57]
[1756622043347,0.15,203.65,203.56,7.57]
[1756622043852,2.53889861,203.65,203.56,7.57]
[1756622044351,4.77779722,203.57,203.43,5.50848771]
[1756622044548,2.38889861,203.44,203.23,2.38889861]
[1756622044758,2.38889861,203.5,203.17,10.63156494]
[1756622044759,2.38889861,203.41,203.3,0.8555098]
[1756622044949,5.98976811,203.4,203.3,0.8555098]
[1756622045251,2.42356236,203.39,203.3,0.8555098]
[1756622045447,2.42356236,203.38,203.31,132.1]
[1756622045653,7.25510826,203.37,203.3,0.8555098]
[1756622045852,7.25510826,203.36,203.3,0.8555098]
[1756622046055,7.58798534,203.35,203.3,0.8555098]
[1756622046257,2.75643944,203.34,203.3,0.8555098]
[1756622046453,2.38889861,203.4,203.32,7.57]
[1756622046650,6.52544562,203.39,203.32,7.57]
[1756622046955,6.52544562,203.38,203.32,7.57]
[1756622047156,6.52544562,203.37,203.3,0.8555098]
[1756622047356,6.52544562,203.36,203.3,7.57]
[1756622047554,6.52544562,203.35,203.29,330.1]
[1756622047758,6.52544562,203.34,203.3,7.69]
[1756622048053,2.75165659,203.33,203.29,330.1]
[1756622048256,2.38889861,203.4,203.3,140.81]
[1756622048449,10.28191307,203.39,203.3,140.81]
[1756622048652,10.28191307,203.38,203.3,140.81]
[1756622048848,6.7564548,203.37,203.3,140.81]
[1756622049053,6.7564548,203.36,203.3,140.81]
[1756622049255,6.7564548,203.35,203.31,2.38889861]
[1756622049553,2.38889861,203.5,203.31,2.38889861]
[1756622049554,2.38889861,203.44,203.32,7.69]
[1756622049752,10.27191285,203.43,203.34,7.69]
[1756622050058,10.27191285,203.42,203.35,90.48]
[1756622050258,6.74981184,203.41,203.36,133.14]
[1756622050558,6.74981184,203.4,203.36,133.14]
[1756622050751,6.74981184,203.39,203.36,140.83]
[1756622050953,6.74981184,203.38,203.36,140.83]
[1756622051158,6.74981184,203.37,203.36,140.83]
[1756622051955,2.38889861,203.46,203.36,7.69]
[1756622052254,6.7411739,203.45,203.38,7.69]
[1756622052448,2.38889861,203.5,203.39,133.26]
[1756622052449,6.7411739,203.44,203.39,133.26]
[1756622052652,6.7411739,203.43,203.4,133.4]
[1756622052848,6.7411739,203.43,203.38,2.38889861]
[1756622052849,2.73794105,203.42,203.41,141.09]
[1756622054265,2.75536392,203.51,203.41,141.09]
[1756622054565,10.28605008,203.5,203.41,141.09]
[1756622054759,10.28605008,203.49,203.41,7.69]
[1756622054953,6.52528218,203.48,203.42,133.3]
[1756622055154,6.52528218,203.47,203.41,7.69]
[1756622055464,6.52528218,203.46,203.42,92.18]
[1756622055652,2.75536392,203.45,203.42,99.87]
[1756622055852,2.75536392,203.44,203.42,99.87]
[1756622056059,2.75536392,203.43,203.42,99.87]
[1756622056470,2.75536392,203.43,203.34,2.38889861]
[1756622056758,2.38889861,203.52,203.35,7.69]
[1756622056759,2.75536392,203.42,203.35,7.69]
[1756622057063,2.75536392,203.41,203.34,2.38889861]
[1756622057256,2.75536392,203.4,203.36,7.69]
[1756622057453,2.38889861,203.52,203.36,7.69]
[1756622057659,9.81745378,203.51,203.35,7.69]
[1756622057859,9.81745378,203.5,203.38,7.69]
[1756622058160,9.81745378,203.49,203.38,7.69]
[1756622058355,6.28083736,203.48,203.38,7.69]
[1756622058560,6.28083736,203.47,203.38,7.69]
[1756622058863,2.75339301,203.46,203.38,7.69]
[1756622059066,2.75339301,203.45,203.39,93.24]
[1756622059264,2.38889861,203.5,203.41,7.69]
[1756622059265,2.75339301,203.44,203.41,7.69]
[1756622059464,2.75339301,203.43,203.42,7.69]
[1756622059666,2.75339301,203.43,203.42,100.01]
[1756622059958,2.75339301,203.43,203.42,7.69]
[1756622060160,2.75339301,203.43,203.42,100.39]
[1756622060363,2.75339301,203.43,203.42,7.69]
[1756622060564,2.75339301,203.43,203.42,98.57]
[1756622061165,2.75339301,203.43,203.42,7.69]
[1756622061366,2.75339301,203.43,203.42,101.53]
[1756622061665,2.75339301,203.43,203.42,141.37]
[1756622062165,2.75339301,203.43,203.42,7.69]
[1756622063066,2.75339301,203.43,203.42,101.29]
[1756622063267,2.75339301,203.43,203.42,7.69]
[1756622063467,2.75339301,203.43,203.42,101.17]
[1756622063667,2.75339301,203.43,203.42,141.27]
[1756622063966,2.75339301,203.43,203.42,7.69]
[1756622064162,2.75339301,203.43,203.42,100.77]
[1756622064465,2.75339301,203.43,203.42,7.69]
[1756622064661,2.75339301,203.43,203.42,100.37]
[1756622064866,2.75201587,203.43,203.42,100.37]
[1756622069472,2.75201587,203.43,203.42,140.61]
[1756622070472,2.75201587,203.43,203.42,7.69]
[1756622070772,2.75201587,203.43,203.42,96.63]
[1756622070973,2.75201587,203.43,203.42,7.69]
[1756622071869,2.38889861,203.51,203.42,96.07]
[1756622072165,6.28519017,203.5,203.43,92.92]
[1756622072371,6.28519017,203.49,203.43,92.92]
[1756622072571,6.28519017,203.48,203.43,100.61]
[1756622072871,6.28519017,203.47,203.43,100.61]
[1756622073072,2.75518172,203.46,203.43,100.61]
[1756622073271,2.75518172,203.45,203.43,100.61]
[1756622073469,2.75518172,203.44,203.43,100.61]
[1756622073772,2.75518172,203.44,203.38,7.69]
[1756622073973,2.38889861,203.51,203.37,2.38889861]
[1756622073974,2.75518172,203.43,203.39,86.88]
[1756622074176,2.75518172,203.42,203.4,7.69]
[1756622074480,2.75518172,203.41,203.4,7.69]
[1756622075675,2.75847295,203.41,203.4,7.69]
[1756622077376,2.75847295,203.41,203.4,92.57]
[1756622079077,2.75847295,203.41,203.4,7.69]
[1756622079275,2.75847295,203.41,203.4,91.49]
[1756622079777,2.75847295,203.41,203.4,7.69]
[1756622079979,2.75847295,203.41,203.4,139.51]
[1756622080573,2.75847295,203.41,203.4,7.69]
[1756622080981,2.75847295,203.41,203.4,90.61]
[1756622081280,2.75847295,203.41,203.4,7.69]
[1756622081578,2.75847295,203.41,203.4,90.07]
[1756622081982,2.75847295,203.41,203.4,7.69]
[1756622082276,2.75847295,203.41,203.4,89.73]
[1756622082481,2.75847295,203.41,203.4,139.15]
[1756622082680,2.75847295,203.41,203.4,7.69]
[1756622083083,2.75847295,203.41,203.4,89.37]
[1756622083480,2.75847295,203.41,203.4,7.69]
[1756622083674,2.75847295,203.41,203.4,139.09]
[1756622083873,2.75847295,203.41,203.4,7.69]
[1756622084280,2.75847295,203.41,203.4,88.69]
[1756622084586,2.75847295,203.41,203.4,138.95]
[1756622084984,2.75847295,203.41,203.4,7.69]
[1756622085482,2.75847295,203.41,203.4,88.01]
[1756622085883,2.75847295,203.41,203.4,7.69]
[1756622086183,2.75847295,203.41,203.4,87.49]
[1756622086481,2.7663225,203.41,203.4,138.73]
[1756622086682,2.7663225,203.41,203.4,7.69]
[1756622086884,2.76867317,203.41,203.4,138.71]
[1756622087083,2.76867317,203.41,203.4,138.67]
[1756622087681,2.76867317,203.41,203.4,138.61]
[1756622088482,2.76867317,203.41,203.4,138.57]
[1756622088685,2.76867317,203.41,203.4,138.49]
[1756622088885,2.76867317,203.41,203.4,7.69]
[1756622089086,2.76867317,203.41,203.4,138.49]
[1756622089680,6.3275704,203.41,203.4,138.49]
[1756622090586,6.3275704,203.41,203.4,7.69]
[1756622090780,6.3275704,203.41,203.4,138.27]
[1756622091487,6.3275704,203.41,203.4,138.23]
[1756622091682,6.3275704,203.41,203.31,2.38889861]
[1756622091886,2.76,203.5,203.39,7.5]
[1756622092085,3.56067917,203.49,203.41,7.5]
[1756622092387,3.56067917,203.48,203.41,7.5]
[1756622092587,3.56067917,203.47,203.41,7.5]
[1756622092784,3.56067917,203.46,203.42,138.18]
[1756622093088,3.56067917,203.45,203.42,130.68]
[1756622093388,3.56067917,203.44,203.43,7.5]
[1756622093585,3.56067917,203.44,203.43,138.14]
[1756622093888,2.38889861,203.54,203.43,138.14]
[1756622093889,2.76,203.54,203.43,8.0]
[1756622094181,2.76,203.54,203.45,7.5]
[1756622094182,3.56316955,203.53,203.45,7.5]
[1756622094387,3.56316955,203.52,203.45,7.5]
[1756622094579,2.76,203.5,203.46,77.9]
[1756622094784,3.56316955,203.49,203.46,85.4]
[1756622094985,3.56316955,203.48,203.46,85.4]
[1756622095185,3.56316955,203.47,203.46,85.4]
[1756622095990,3.56316955,203.47,203.46,7.5]
[1756622096191,3.56316955,203.47,203.46,137.94]
[1756622099197,3.56316955,203.47,203.46,137.54]
[1756622099789,3.56316955,203.47,203.46,7.5]
[1756622100088,3.56316955,203.47,203.46,137.54]
[1756622100489,3.56316955,203.47,203.46,137.48]
[1756622100696,3.56316955,203.47,203.46,7.5]
[1756622100894,2.76,203.56,203.45,7.5]
[1756622101092,3.54841758,203.55,203.48,7.5]
[1756622101291,3.54841758,203.54,203.48,7.5]
[1756622101598,6.30841758,203.53,203.5,7.5]
[1756622101788,3.54841758,203.52,203.5,7.5]
[1756622101990,2.76,203.59,203.51,137.32]
[1756622102188,3.54763245,203.58,203.52,7.5]
[1756622102389,3.54763245,203.57,203.51,129.82]
[1756622102590,3.54763245,203.56,203.52,129.82]
[1756622102893,3.54763245,203.55,203.53,7.5]
[1756622103100,3.54763245,203.54,203.53,7.5]
[1756622103692,2.76,203.59,203.53,137.22]
[1756622103896,8.7508439,203.58,203.54,7.5]
[1756622104097,5.9908439,203.57,203.54,7.5]
[1756622104297,5.9908439,203.56,203.54,7.5]
[1756622104597,2.76,203.58,203.54,7.53349581]
[1756622104598,5.9908439,203.55,203.54,7.53349581]
[1756622105302,2.46153126,203.55,203.54,7.53349581]
[1756622106502,2.46153126,203.55,203.54,12.17150262]
[1756622110810,2.46153126,203.55,203.54,141.27150262]
[1756622111109,2.76,203.61,203.55,7.74]
[1756622111303,2.76,203.61,203.56,4.63800681]
[1756622111304,5.97547129,203.6,203.56,4.63800681]
[1756622111510,2.45542629,203.59,203.58,7.74]
[1756622111808,2.45542629,203.59,203.58,133.73800681]
[1756622112607,2.45542629,203.59,203.58,133.67800681]
[1756622112810,2.45542629,203.59,203.58,141.41800681]
[1756622113013,2.45542629,203.59,203.58,12.37800681]
[1756622113210,2.76,203.65,203.58,12.37800681]
[1756622113211,2.76,203.65,203.59,7.74]
[1756622113511,2.45422168,203.64,203.61,7.74]
[1756622113710,2.45422168,203.63,203.62,141.31800681]
[1756622114310,2.45422168,203.63,203.62,12.37800681]
[1756622114508,2.45422168,203.63,203.62,141.29800681]
[1756622114709,0.85478483,203.76,203.62,141.29800681]
[1756622114710,2.76,203.7,203.62,141.29800681]
[1756622114909,5.90095517,203.69,203.64,7.74]
[1756622115114,2.44000857,203.68,203.66,7.74]
[1756622115306,2.76,203.74,203.67,133.47800681]
[1756622115511,5.89694118,203.73,203.68,4.63800681]
[1756622115711,2.76,203.71,203.69,133.41800681]
[1756622115911,2.76,203.71,203.7,4.63800681]
[1756622116212,5.19860004,203.71,203.7,4.63800681]
[1756622117308,5.19860004,203.71,203.7,18.65800681]
[1756622117510,5.19860004,203.71,203.7,18.63135184]
[1756622120111,5.19860004,203.71,203.7,4.61135184]
[1756622122919,5.69860004,203.71,203.7,4.61135184]
[1756622123215,5.69860004,203.71,203.63,7.74]
[1756622123216,2.76,203.7,203.63,59.7]
[1756622123521,2.76,203.7,203.64,4.60856069]
[1756622123522,2.43860004,203.69,203.64,4.60856069]